bitfinex-derivatives/quotes_ETHF0:USTF0_20250421
["timestamp","ask_amount","ask_price","bid_price","bid_amount"]
[1745247226172,1.22792,1628.4,1628.3,4.9513]
[1745247226367,16.1106,1628.7,1628.3,4.9513]
[1745247226668,16.1106,1628.7,1628.4,1.22792]
[1745247226669,1.7468,1628.5,1628.4,1.22792]
[1745247226871,2.97465,1628.5,1628.3,4.44499687]
[1745247227069,2.97465,1628.5,1628.3,0.00921687]
[1745247227265,1.22792,1628.4,1628.3,0.00921687]
[1745247227469,7.98472,1628.4,1628.3,0.00921687]
[1745247227870,5.01921687,1628.7,1628.3,3.21701687]
[1745247228065,5.01921687,1628.7,1628.6,1.22777]
[1745247228865,5.01921687,1628.7,1628.6,4.43557]
[1745247229670,0.00921687,1628.7,1628.6,6.10547]
[1745247229868,6.23749,1629.0,1628.9,1.2275]
[1745247230066,5.01,1629.0,1628.9,1.2275]
[1745247230469,5.01,1629.0,1628.9,2.8974]
[1745247231371,6.23747,1629.0,1628.9,9.0434]
[1745247231873,5.01,1629.0,1628.9,9.0434]
[1745247232369,5.01,1629.0,1628.9,2.8974]
[1745247233277,1.22755,1628.9,1628.8,5.56537]
[1745247233466,1.22755,1628.9,1628.8,7.19137]
[1745247233665,6.23749,1629.0,1628.9,1.22755]
[1745247233866,6.23749,1629.0,1628.9,2.85355]
[1745247234369,6.23747,1629.0,1628.9,2.85355]
[1745247234573,1.22755,1628.9,1628.8,3.2078]
[1745247234873,2.85245,1628.9,1628.8,1.22761]
[1745247235174,1.6249,1628.9,1628.8,1.22761]
[1745247235767,5.01,1629.0,1628.9,1.22755]
[1745247236468,6.6349,1629.0,1628.9,1.22755]
[1745247236873,7.86237,1629.0,1628.9,1.22755]
[1745247237385,6.6349,1629.0,1628.9,1.22755]
[1745247237795,6.6339,1629.0,1628.9,1.22755]
[1745247238986,6.6339,1629.0,1628.9,2.89265]
[1745247239683,1.6249,1629.0,1628.9,2.89265]
[1745247239889,6.6339,1629.0,1628.9,2.89265]
[1745247240286,5.009,1629.0,1628.9,2.89265]
[1745247240598,9.1918,1629.8,1629.7,1.22694]
[1745247240883,1.6557,1629.8,1629.7,1.22694]
[1745247241469,6.23578,1630.0,1629.8,1.22684]
[1745247241673,5.009,1630.0,1629.9,1.22679]
[1745247241980,1.22679,1629.9,1629.7,1.22689]
[1745247242178,1.6557,1629.9,1629.7,1.6713]
[1745247242380,1.6557,1629.9,1629.8,1.22687]
[1745247242584,2.88249,1629.9,1629.8,1.22687]
[1745247242782,1.6557,1629.9,1629.8,1.22687]
[1745247243379,1.6557,1629.9,1629.7,4.8791]
[1745247243380,2.88255,1629.9,1629.7,4.8791]
[1745247243585,1.6557,1629.9,1629.8,1.22687]
[1745247243785,5.009,1630.0,1629.7,4.8791]
[1745247243984,5.009,1630.0,1629.9,1.22679]
[1745247244186,5.984,1630.1,1630.0,1.22672]
[1745247244485,7.21064,1630.1,1630.0,1.6235]
[1745247244684,8.93574,1630.1,1630.0,1.6235]
[1745247244880,8.93574,1630.1,1630.0,2.85022]
[1745247245092,1.22625,1630.7,1630.0,7.7695]
[1745247245393,5.984,1630.7,1630.6,1.22627]
[1745247245588,5.008,1630.8,1630.4,3.06605]
[1745247245788,6.7331,1630.8,1630.7,1.22619]
[1745247246375,1.1891,1630.9,1630.7,6.22619]
[1745247246582,16.11186604,1631.0,1630.8,3.2078]
[1745247246887,1.22621,1630.7,1630.5,0.00921687]
[1745247247087,11.14057,1630.6,1630.5,0.00921687]
[1745247247281,16.00227109,1630.6,1630.1,3.2078]
[1745247247481,15.8983,1630.6,1630.3,1.22649]
[1745247247780,9.1918,1630.8,1630.5,1.2263]
[1745247247979,5.984,1630.8,1630.7,1.22619]
[1745247248182,6.1117,1630.9,1630.8,1.22612]
[1745247248380,7.81941687,1630.9,1630.8,1.22612]
[1745247248580,7.81941687,1630.9,1630.7,2.88225]
[1745247248885,7.81941687,1630.9,1630.6,3.21701687]
[1745247248886,7.81941687,1630.9,1630.8,1.22612]
[1745247249188,6.71571687,1630.9,1630.8,1.22612]
[1745247249390,1.70771687,1630.9,1630.8,1.22612]
[1745247250104,7.85371687,1630.9,1630.7,1.22613]
[1745247250288,7.85371687,1630.9,1630.8,1.22612]
[1745247250590,9.07977687,1630.9,1630.7,1.22613]
[1745247250890,7.85371687,1630.9,1630.6,3.21701687]
[1745247251081,1.70771687,1630.9,1630.8,1.22612]
[1745247251385,1.22618,1630.8,1630.6,0.00921687]
[1745247251690,6.6568,1630.7,1630.6,1.23546687]
[1745247251884,5.007,1630.7,1630.6,1.23546687]
[1745247252083,5.007,1630.7,1630.6,4.44326687]
[1745247252279,1.65901687,1630.9,1630.8,1.22612]
[1745247252585,0.00921687,1630.9,1630.8,4.43392]
[1745247252988,6.87e-06,1630.9,1630.8,9.43392]
[1745247253282,6.87e-06,1630.9,1630.8,14.43992]
[1745247256184,6.87e-06,1630.9,1630.8,1.22612]
[1745247256592,1.65980687,1630.9,1630.8,4.43392]
[1745247256886,2.88584687,1630.9,1630.8,3.2078]
[1745247257089,2.88584687,1630.9,1630.8,1.22612]
[1745247257284,6.14600687,1630.9,1630.8,1.22612]
[1745247257592,5.003,1631.1,1631.0,1.22597]
[1745247257793,1.6598,1631.3,1631.2,1.22582]
[1745247257987,2.88554,1631.3,1631.2,1.22582]
[1745247258186,7.8058,1631.3,1631.2,1.22582]
[1745247258388,1.22582,1631.2,1631.1,1.22584]
[1745247258588,1.6598,1631.2,1631.1,4.43364]
[1745247258788,1.6598,1631.2,1631.1,1.22584]
[1745247259098,1.2259,1631.1,1631.0,1.2259]
[1745247259291,1.1812,1631.1,1630.9,3.2078]
[1745247259495,1.1812,1631.1,1630.8,1.2261]
[1745247259496,1.6981,1631.0,1630.8,1.2261]
[1745247259692,1.22604,1630.9,1630.8,1.2261]
[1745247259892,1.22612,1630.8,1630.7,2.87266]
[1745247260096,1.6981,1631.0,1630.7,2.87263]
[1745247260297,1.22604,1630.9,1630.7,2.87263]
[1745247260492,1.6981,1630.8,1630.7,2.87263]
[1745247260696,1.6981,1630.8,1630.6,1.23540687]
[1745247260697,6.7001,1630.8,1630.6,1.23540687]
[1745247260886,13.91026,1630.8,1630.6,1.23541687]
[1745247261090,13.91026,1630.8,1630.7,1.22619]
[1745247261291,13.91022,1630.8,1630.7,1.22619]
[1745247261593,1.22619,1630.7,1630.6,0.00921687]
[1745247261792,2.99279,1630.7,1630.6,0.00921687]
[1745247262097,1.7666,1630.7,1630.6,1.23548687]
[1745247262497,1.7666,1630.7,1630.6,0.00921687]
[1745247262498,7.99279,1630.7,1630.6,0.00921687]
[1745247262799,6.7666,1630.7,1630.3,1.22643]
[1745247262996,1.22638,1630.5,1630.4,1.2264]
[1745247263192,6.22838,1630.5,1630.3,1.22647]
[1745247263395,5.002,1630.5,1630.2,1.7546]
[1745247263692,2.99304,1630.4,1630.2,2.98113]
[1745247263891,1.22657,1630.2,1630.1,3.2078]
[1745247264094,6.22857,1630.2,1630.1,0.00921687]
[1745247264294,11.22857,1630.2,1630.1,0.00921687]
[1745247264597,11.33256811,1630.2,1630.1,0.00921687]
[1745247264898,1.22679,1629.9,1629.8,3.2078]
[1745247265294,6.22879,1629.9,1629.8,3.2078]
[1745247267602,5.984,1630.2,1629.8,3.2078]
[1745247267804,1.22666,1630.1,1630.0,1.2267]
[1745247268001,1.22672,1630.0,1629.9,1.7555]
[1745247268206,1.7377,1630.1,1629.8,3.2078]
[1745247268405,1.22679,1629.9,1629.8,3.2078]
[1745247268606,6.22979,1629.9,1629.8,3.2078]
[1745247268908,1.22687,1629.8,1629.7,1.23610687]
[1745247269202,2.96457,1629.8,1629.7,1.76471687]
[1745247269396,2.96457,1629.8,1629.7,0.00921687]
[1745247270098,9.21459082,1629.8,1629.7,0.00921687]
[1745247271099,1.22717,1629.4,1629.3,3.2078]
[1745247271303,1.22728,1629.3,1629.0,3.2078]
[1745247271502,1.22736,1629.2,1629.1,1.2274]
[1745247271703,1.7056,1629.3,1629.2,1.22732]
[1745247271903,5.004,1629.4,1629.3,1.22725]
[1745247272709,6.7096,1629.4,1629.3,1.22725]
[1745247273105,5.004,1629.4,1629.3,1.22725]
[1745247273312,6.23117,1629.4,1629.2,3.00558687]
[1745247273506,6.7096,1629.4,1629.3,1.22725]
[1745247273712,5.004,1629.4,1629.3,4.43505]
[1745247273909,5.004,1629.4,1629.3,5.50995]
[1745247274313,6.23117,1629.4,1629.3,3.2078]
[1745247274615,5.004,1629.4,1629.3,4.43505]
[1745247274811,5.004,1629.4,1629.3,6.12305]
[1745247276718,0.00921687,1629.5,1629.4,1.22717]
[1745247276920,0.00921687,1629.5,1629.4,3.97937]
[1745247277126,0.00921687,1629.5,1629.4,10.12537]
[1745247277618,5.005,1629.7,1629.6,1.22702]
[1745247277827,12.7095,1630.0,1629.7,3.06722]
[1745247278123,7.95223,1630.0,1629.7,4.74902]
[1745247278326,1.22687,1629.9,1629.8,1.22683]
[1745247278528,7.95222,1630.0,1629.9,1.22679]
[1745247278823,7.95222,1630.0,1629.9,2.90859]
[1745247278824,7.96143687,1630.0,1629.9,2.90859]
[1745247279024,7.96143687,1630.0,1629.9,6.11639]
[1745247279416,7.96143687,1630.0,1629.9,1.6818]
[1745247279724,14.9055337,1630.0,1629.6,1.1719]
[1745247279920,3.067,1629.9,1629.6,2.8768]
[1745247280227,2.89873,1629.8,1629.7,1.22694]
[1745247280620,2.89867,1629.8,1629.7,2.93184]
[1745247280923,2.89867,1629.8,1629.7,1.7049]
[1745247281428,1.6718,1629.8,1629.7,6.13964]
[1745247281622,2.89867,1629.8,1629.7,3.2078]
[1745247281823,1.6718,1629.8,1629.7,1.22694]
[1745247282334,2.89867,1629.8,1629.7,1.22694]
[1745247282521,1.6718,1629.8,1629.7,1.22694]
[1745247282821,1.6718,1629.8,1629.7,4.43474]
[1745247283023,2.89874,1629.8,1629.5,4.9127]
[1745247283322,5.005,1629.7,1629.6,1.22702]
[1745247283627,5.005,1629.7,1629.6,4.43482]
[1745247286428,6.23194,1629.7,1629.6,4.43482]
[1745247286728,5.005,1629.7,1629.6,4.43482]
[1745247287321,6.23194,1629.7,1629.6,4.43482]
[1745247287833,5.005,1629.7,1629.5,1.7049]
[1745247288131,6.23194,1629.7,1629.6,4.43482]
[1745247288326,5.005,1629.7,1629.6,1.22702]
[1745247288825,1.22688,1629.9,1629.6,6.27536]
[1745247289129,5.004,1629.9,1629.8,1.22679]
[1745247289428,5.004,1629.9,1629.8,4.43459]
[1745247290420,6.23079,1629.9,1629.8,4.43459]
[1745247290620,5.004,1629.9,1629.8,4.43459]
[1745247291630,6.23079,1629.9,1629.8,4.43459]
[1745247291830,5.004,1629.9,1629.8,4.43459]
[1745247292224,6.7455,1629.9,1629.8,4.43459]
[1745247292932,7.97229,1629.9,1629.8,4.43459]
[1745247293131,5.004,1629.9,1629.8,4.43459]
[1745247293329,5.004,1630.2,1630.0,1.22672]
[1745247293629,5.004,1630.2,1630.1,6.16564]
[1745247293824,5.004,1630.2,1630.1,2.95784]
[1745247294032,5.004,1630.2,1630.1,6.16564]
[1745247294232,5.004,1630.2,1630.1,2.95784]
[1745247294738,1.22664,1630.1,1630.0,1.22665]
[1745247294929,2.96814,1630.1,1630.0,1.22665]
[1745247295329,1.7415,1630.1,1630.0,1.22665]
[1745247295627,2.96819,1630.1,1629.9,1.7913]
[1745247295831,2.96819,1630.1,1630.0,1.22672]
[1745247296035,1.7415,1630.1,1630.0,1.22672]
[1745247296235,5.004,1630.2,1630.1,1.22664]
[1745247296431,5.004,1630.2,1630.1,3.01794]
[1745247296633,0.00921687,1630.3,1630.2,1.22657]
[1745247296828,0.00921687,1630.3,1630.2,6.22567]
[1745247297229,0.00921687,1630.3,1630.2,3.01787]
[1745247297735,0.00921687,1630.3,1630.2,6.22567]
[1745247299138,0.00921687,1630.3,1630.2,12.37167]
[1745247300036,5.003,1630.4,1630.3,1.22649]
[1745247300037,1.41394848,1630.4,1630.3,1.22649]
[1745247301237,25.0,2234.0,1630.8,1.22612]
[1745247301238,7.0829,1630.9,1630.8,1.22612]
[1745247301439,6.20584914,1630.9,1630.8,1.22612]
[1745247301638,7.91874816,1630.9,1630.8,4.43392]
[1745247301839,1.7129,1630.9,1630.8,4.43392]
[1745247302839,15.13086604,1631.0,1630.9,1.22604]
[1745247303038,15.13086604,1631.0,1630.9,2.86774]
[1745247303234,16.84376604,1631.0,1630.9,1.6417]
[1745247303436,1.22604,1630.9,1630.8,3.2078]
[1745247303735,4.88204094,1630.9,1630.5,4.43412]
[1745247303933,1.22627,1630.6,1630.5,3.2078]
[1745247304233,1.33023161,1630.6,1630.5,3.2078]
[1745247304538,1.22627,1630.6,1630.5,3.2078]
[1745247304839,1.22639,1630.5,1630.3,4.43429]
[1745247305134,6.6416,1630.5,1630.4,1.22642]
[1745247305330,7.86794,1630.5,1630.4,1.22642]
[1745247305841,7.86794,1630.5,1630.3,4.43423]
[1745247306834,5.984,1630.7,1630.4,4.29247]
[1745247307036,5.984,1630.7,1630.6,1.22627]
[1745247307538,5.984,1630.7,1630.6,3.00757]
[1745247308342,16.11186604,1630.7,1630.6,3.00757]
[1745247309237,10.12786604,1630.7,1630.6,3.00757]
[1745247309437,10.12786604,1630.7,1630.5,3.2078]
[1745247309742,10.12786604,1630.7,1630.5,4.43414]
[1745247309743,2.95907,1630.6,1630.5,4.43414]
[1745247310233,2.95907,1630.6,1630.5,3.2078]
[1745247310640,1.22657,1630.2,1630.1,0.00921687]
[1745247310934,1.22657,1630.2,1629.7,1.7091]
[1745247310935,3.0667,1630.1,1629.7,1.7091]
[1745247311133,1.22681,1629.9,1629.7,2.93604]
[1745247311335,6.6784,1629.8,1629.7,2.93604]
[1745247311538,7.90527,1629.8,1629.7,1.7091]
[1745247311742,1.22697,1629.7,1629.5,1.1934]
[1745247311933,1.6764,1629.7,1629.6,1.22702]
[1745247312740,5.01121687,1629.8,1629.7,1.22694]
[1745247312932,1.6764,1630.2,1630.1,1.22664]
[1745247313137,8.00897019,1630.2,1630.1,1.22664]
[1745247313542,5.10600019,1630.2,1630.1,1.22664]
[1745247313849,5.002,1630.2,1630.1,1.22664]
[1745247314141,6.22857,1630.2,1630.1,1.22664]
[1745247314347,7.94217,1630.2,1630.1,1.22664]
[1745247314644,1.22664,1630.1,1630.0,1.22666]
[1745247314842,1.22672,1630.0,1629.9,1.7683]
[1745247315044,2.94024,1630.1,1630.0,1.22672]
[1745247315231,1.7136,1630.0,1629.9,1.22674]
[1745247315436,2.94032,1630.0,1629.8,2.3692]
[1745247315643,2.94032,1630.0,1629.9,1.22679]
[1745247315851,2.94032,1630.0,1629.8,2.36922]
[1745247316232,1.22679,1629.9,1629.8,2.36922]
[1745247316442,4.999,1629.9,1629.7,1.7683]
[1745247316639,4.999,1629.9,1629.7,2.99521]
[1745247316640,6.22586,1629.9,1629.7,2.99521]
[1745247317260,4.999,1629.9,1629.7,1.7683]
[1745247317446,5.984,1630.1,1630.0,1.22672]
[1745247318336,5.984,1630.1,1630.0,2.85412]
[1745247318949,7.21064,1630.1,1630.0,2.85412]
[1745247320442,8.84874,1630.1,1630.0,2.85412]
[1745247320951,1.6381,1630.1,1630.0,2.85412]
[1745247321353,2.86474,1630.1,1630.0,1.6274]
[1745247321554,1.22672,1630.0,1629.9,2.38115]
[1745247321752,2.86482,1630.0,1629.9,1.22675]
[1745247322057,1.22687,1629.8,1629.7,4.43469]
[1745247322674,1.22687,1629.8,1629.7,6.14839]
[1745247322866,2.90607,1629.8,1629.7,6.14839]
[1745247323257,1.6792,1629.8,1629.7,6.14839]
[1745247324363,2.90607,1629.8,1629.7,3.2078]
[1745247324565,1.22697,1629.7,1629.5,1.2271]
[1745247324770,1.6792,1629.6,1629.5,1.2271]
[1745247325075,1.6792,1629.6,1629.5,2.9408]
[1745247325266,1.22692,1629.8,1629.6,1.22702]
[1745247325468,1.7017,1629.8,1629.7,1.22694]
[1745247325661,2.92857,1629.8,1629.7,1.22694]
[1745247326653,1.7017,1629.8,1629.5,6.48902]
[1745247326857,2.92862,1629.8,1629.7,1.22694]
[1745247327356,1.22697,1629.7,1629.6,1.22696]
[1745247327555,2.92867,1629.7,1629.6,1.22696]
[1745247327855,1.7017,1629.7,1629.6,1.22696]
[1745247328056,1.22693,1629.8,1629.6,1.22696]
[1745247328257,5.0,1629.9,1629.8,1.22687]
[1745247328553,6.22679,1629.9,1629.8,1.22687]
[1745247328854,6.22679,1629.9,1629.7,1.7531]
[1745247328855,1.22687,1629.8,1629.7,2.97999]
[1745247329050,3.02167,1629.8,1629.7,2.97999]
[1745247329458,3.02167,1629.8,1629.7,1.22689]
[1745247330957,11.35450604,1630.1,1630.0,1.22672]
[1745247331755,10.12786604,1630.1,1630.0,1.22672]
[1745247331959,11.35450604,1630.1,1630.0,1.22672]
[1745247332159,10.12786604,1630.1,1630.0,1.22672]
[1745247333353,10.12786604,1630.1,1630.0,6.22672]
[1745247333552,10.65332604,1630.5,1630.4,1.22642]
[1745247333751,11.87966604,1630.5,1630.4,1.22642]
[1745247334355,11.87966604,1630.5,1630.4,2.90332]
[1745247334557,10.65332604,1630.5,1630.4,2.90332]
[1745247334756,11.87966604,1630.5,1630.4,2.90332]
[1745247335651,11.87966604,1630.5,1630.4,1.6769]
[1745247335958,11.87966604,1630.5,1630.4,1.22642]
[1745247336346,13.65136604,1630.5,1630.4,1.22642]
[1745247336547,10.65332604,1630.5,1630.4,2.91922]
[1745247336758,9.43295,1630.8,1630.7,1.22619]
[1745247336964,6.22515,1630.8,1630.7,1.22619]
[1745247337264,8.10079823,1630.8,1630.7,1.22619]
[1745247337453,1.22619,1630.7,1630.6,1.22621]
[1745247337653,1.22628,1630.6,1630.4,1.6928]
[1745247337852,1.22628,1630.6,1630.5,1.22634]
[1745247338252,6.22515,1630.8,1630.4,4.75885]
[1745247338460,1.7904,1630.8,1630.7,1.22619]
[1745247338661,6.7894,1630.8,1630.7,1.22619]
[1745247338956,4.999,1630.8,1630.7,1.22619]
[1745247339170,12.05383595,1631.0,1630.9,1.22604]
[1745247339860,12.05383595,1631.2,1631.1,1.22589]
[1745247340258,12.05383595,1631.2,1631.1,4.43369]
[1745247340457,12.05383595,1631.2,1631.1,6.16999]
[1745247341663,12.05383595,1631.2,1631.1,11.16999]
[1745247341859,9.14487595,1631.2,1631.1,11.16999]
[1745247342062,6.02453595,1631.2,1631.1,6.16999]
[1745247342263,4.22202595,1631.2,1631.1,17.05399]
[1745247342466,0.37412595,1631.2,1631.1,17.05399]
[1745247342960,3.15388111,1631.4,1631.3,1.22574]
[1745247343266,1.11e-06,1631.4,1631.3,15.31554]
[1745247343564,10.7601,1632.2,1631.5,3.06385]
[1745247343565,30.11748217,1632.2,1631.5,3.06385]
[1745247343763,1.22535,1631.9,1631.7,4.4332]
[1745247343958,1.7973,1631.8,1631.7,4.42623485]
[1745247344159,9.16867,1631.8,1631.7,1.21843485]
[1745247344355,1.22544,1631.7,1631.6,1.7717]
[1745247344557,3.02274,1631.7,1631.6,1.7717]
[1745247344866,1.22559,1631.5,1631.3,7.10969]
[1745247345062,1.22567,1631.4,1631.3,1.7717]
[1745247345266,3.02297,1631.4,1631.3,1.7717]
[1745247345761,1.22574,1631.3,1631.2,0.00921687]
[1745247345968,3.12694618,1631.3,1631.2,0.00921687]
[1745247346167,9.27294618,1631.3,1631.2,0.00921687]
[1745247346365,1.22597,1631.0,1630.9,1.22599]
[1745247346566,3.2078,1631.0,1630.7,5.26825]
[1745247346867,1.22612,1630.8,1630.7,4.8976]
[1745247347370,9.02172,1630.8,1630.7,3.2078]
[1745247347766,9.02172,1630.8,1630.7,4.43399]
[1745247347965,9.02172,1630.8,1630.7,3.2078]
[1745247348167,2.87572,1630.8,1630.7,3.2078]
[1745247348565,2.87572,1630.8,1630.7,4.43399]
[1745247348971,0.85091687,1630.9,1630.8,1.22612]
[1745247351163,0.00921687,1630.9,1630.8,1.22612]
[1745247353268,9.0308,1631.3,1631.2,1.22582]
[1745247353464,8.1998,1631.3,1631.2,1.22582]
[1745247353671,3.2078,1631.7,1631.6,1.22549]
[1745247353864,1.22553,1631.6,1631.5,1.22554]
[1745247354066,1.22559,1631.5,1631.4,2.8872]
[1745247354362,1.22559,1631.5,1631.3,3.2078]
[1745247354363,13.99738,1631.6,1631.5,1.22559]
[1745247354670,14.10127557,1631.6,1631.5,1.22559]
[1745247354860,19.10127557,1631.6,1631.5,1.22559]
[1745247355166,11.24189557,1631.6,1631.5,1.22559]
[1745247355468,11.138,1631.6,1631.5,1.22559]
[1745247355663,6.146,1631.6,1631.5,1.22559]
[1745247356066,17.122,1631.6,1631.4,3.2078]
[1745247356266,1.22567,1631.4,1631.3,0.00921687]
[1745247356573,1.22567,1631.4,1631.3,1.23495687]
[1745247357068,1.22567,1631.4,1631.3,0.00921687]
[1745247357368,8.26797,1631.4,1631.3,1.23495687]
[1745247357572,7.0423,1631.4,1631.3,1.23495687]
[1745247358064,8.8272,1631.4,1631.3,1.23495687]
[1745247358371,10.05287,1631.4,1631.3,1.23495687]
[1745247358668,10.05287,1631.4,1631.3,0.00921687]
[1745247358871,10.05287,1631.4,1631.3,1.23495687]
[1745247359467,8.8272,1631.4,1631.3,1.23495687]
[1745247359968,10.05287,1631.4,1631.3,0.00921687]
[1745247360372,10.05287,1631.4,1631.3,1.23495687]
[1745247361969,1.22582,1631.2,1631.1,3.2078]
[1745247362169,7.37182,1631.2,1631.1,3.2078]
[1745247362576,10.12074324,1631.2,1631.1,3.2078]
[1745247362771,8.791,1631.2,1631.1,4.43369]
[1745247363674,8.791,1631.2,1631.0,0.00921687]
[1745247363971,4.43369,1631.1,1631.0,0.00921687]
[1745247364172,11.32262141,1631.1,1631.0,0.00921687]
[1745247364373,1.22619,1630.7,1630.6,1.22622]
[1745247364571,1.22626,1630.7,1630.6,1.22626]
[1745247364969,3.02026,1630.7,1630.6,1.22626]
[1745247365173,3.86666,1630.7,1630.6,1.22626]
[1745247365374,1.22627,1630.6,1630.5,2.84829]
[1745247365573,2.96557,1630.6,1630.5,2.85750687]
[1745247366772,0.8464,1630.7,1630.6,1.22627]
[1745247367378,6.21714,1630.8,1630.7,1.22619]
[1745247367570,4.991,1630.8,1630.7,1.22619]
[1745247368375,6.21712,1630.8,1630.7,2.99359]
[1745247368570,1.22619,1630.7,1630.6,4.43404]
[1745247368767,3.2078,1631.0,1630.6,4.9752]
[1745247368967,1.22594,1631.1,1631.0,1.2259]
[1745247369166,2.92132,1631.2,1631.1,1.22589]
[1745247369371,1.22589,1631.1,1631.0,2.9933]
[1745247369570,1.22603,1631.0,1630.9,1.22599]
[1745247369777,1.22604,1630.9,1630.8,2.9935]
[1745247369973,2.08924,1630.9,1630.8,1.7674]
[1745247370276,2.08924,1630.9,1630.8,1.22612]
[1745247370277,0.8632,1630.9,1630.8,1.22612]
[1745247370577,1.22616,1630.8,1630.7,1.22612]
[1745247370778,2.92166,1630.8,1630.7,1.22612]
[1745247371581,0.8632,1630.9,1630.6,1.7674]
[1745247371777,2.517,1630.9,1630.8,1.22612]
[1745247371974,0.8632,1630.9,1630.8,1.22612]
[1745247372879,5.8211,1631.1,1631.0,1.22597]
[1745247373068,7.4749,1631.1,1631.0,1.22597]
[1745247373275,0.8291,1631.1,1631.0,1.22597]
[1745247373476,0.00921687,1631.3,1631.2,1.22582]
[1745247373875,1.23495687,1631.3,1631.2,1.22582]
[1745247374880,2.95295687,1631.3,1631.2,1.22582]
[1745247375280,1.72721687,1631.3,1631.2,1.22582]
[1745247375481,0.00921687,1631.3,1631.2,1.22582]
[1745247375676,0.00921687,1631.3,1631.2,12.10982]
[1745247375677,6.87e-06,1631.3,1631.2,12.10982]
[1745247375982,6.87e-06,1631.3,1631.2,15.31762]
[1745247376179,6.87e-06,1631.3,1631.2,23.09212]
[1745247376689,6.87e-06,1631.3,1631.2,23.58839485]
[1745247377188,6.87e-06,1631.3,1631.2,17.44239485]
[1745247377877,6.87e-06,1631.3,1631.2,16.94612]
[1745247379184,6.87e-06,1631.3,1631.2,23.09212]
[1745247380175,6.87e-06,1631.3,1631.2,16.94612]
[1745247380382,6.87e-06,1631.3,1631.2,11.94612]
[1745247381988,6.87e-06,1631.3,1631.2,6.06212]
[1745247382875,10.80180687,1631.3,1630.8,3.06524]
[1745247383085,1.22594,1631.1,1631.0,1.22592]
[1745247383386,1.22599,1631.0,1630.9,1.22597]
[1745247383582,1.22595,1631.1,1631.0,1.22594]
[1745247383889,1.7721,1631.1,1631.0,1.22594]
[1745247384082,2.99799,1631.1,1631.0,1.22594]
[1745247384283,1.7721,1631.1,1631.0,1.22594]
[1745247385083,1.7721,1631.1,1631.0,2.85394]
[1745247385287,2.99799,1631.1,1631.0,2.85394]
[1745247385487,2.99799,1631.1,1630.9,4.43378]
[1745247385488,1.22597,1631.0,1630.9,4.43378]
[1745247385781,1.22604,1630.9,1630.8,1.22608]
[1745247385989,1.22617,1630.8,1630.7,1.22617]
[1745247386185,4.78877,1630.8,1630.7,1.22617]
[1745247386490,9.78877,1630.8,1630.7,1.22617]
[1745247386788,1.2262,1630.7,1630.6,1.22622]
[1745247387088,1.6414,1630.7,1630.6,1.22622]
[1745247388085,1.7905,1630.8,1630.7,1.22619]
[1745247388291,3.01662,1630.8,1630.7,1.22619]
[1745247388891,1.22619,1630.7,1630.6,1.22621]
[1745247389085,2.86759,1630.7,1630.6,1.22621]
[1745247389278,1.6414,1630.7,1630.6,1.22621]
[1745247392389,1.6414,1630.7,1630.5,0.00921687]
[1745247392693,6.6264,1630.7,1630.6,1.22627]
[1745247392891,6.6264,1630.7,1630.6,2.97077]
[1745247394686,6.6264,1630.7,1630.6,6.17857]
[1745247395593,0.8921,1630.8,1630.7,1.22619]
[1745247395793,1.22624,1630.7,1630.6,1.22622]
[1745247396092,1.22627,1630.6,1630.5,1.23549687]
[1745247396395,2.14512521,1630.6,1630.5,0.00921687]
[1745247396593,7.04117,1630.6,1630.5,0.00921687]
[1745247396896,8.81583612,1630.6,1630.5,0.00921687]
[1745247397098,14.96183612,1630.6,1630.5,0.00921687]
[1745247397699,1.22652,1630.3,1630.2,1.2265]
[1745247397997,6.21248,1630.4,1630.3,1.22649]
[1745247398294,7.88318,1630.4,1630.3,1.22649]
[1745247399794,3.07509687,1630.5,1630.4,1.22642]
[1745247399795,0.00921687,1630.5,1630.4,1.22642]
[1745247400294,0.00921687,1630.5,1630.4,2.95732]
[1745247400897,1.23555687,1630.5,1630.4,2.95732]
[1745247401097,3.01605687,1630.5,1630.4,2.95732]
[1745247401600,3.01605687,1630.5,1630.4,1.22642]
[1745247401795,1.22647,1630.4,1630.3,1.22645]
[1745247401991,3.01087,1630.4,1630.3,1.22645]
[1745247402596,1.22649,1630.3,1630.2,1.23572687]
[1745247402800,3.83709,1630.3,1630.2,0.00921687]
[1745247402996,3.83709,1630.3,1630.2,1.23578687]
[1745247403196,1.22683,1629.9,1629.7,3.2078]
[1745247403391,1.22687,1629.8,1629.7,2.97878]
[1745247403597,3.01127,1629.8,1629.7,2.97884]
[1745247403794,4.9922,1629.8,1629.4,7.09826]
[1745247403992,1.22698,1629.7,1629.6,1.227]
[1745247404198,1.22702,1629.6,1629.5,2.97896]
[1745247404401,1.22702,1629.6,1629.5,2.98817687]
[1745247404598,3.01142,1629.6,1629.5,2.98817687]
[1745247405104,1.7844,1629.6,1629.5,2.98817687]
[1745247405397,3.01142,1629.6,1629.5,2.98817687]
[1745247405602,3.01142,1629.6,1629.5,0.00921687]
[1745247405789,5.8142,1629.7,1629.5,0.00921687]
[1745247405994,5.8142,1629.7,1629.6,4.43482]
[1745247406300,4.988,1629.7,1629.6,1.22702]
[1745247407503,6.21494,1629.7,1629.6,1.22702]
[1745247408205,1.22702,1629.6,1629.5,1.74681687]
[1745247408403,2.93622,1629.6,1629.5,2.97391687]
[1745247408901,1.7092,1629.6,1629.5,2.97391687]
[1745247409201,5.8293,1629.7,1629.6,1.22702]
[1745247409202,7.05624,1629.7,1629.6,1.22702]
[1745247409406,7.05624,1629.7,1629.5,2.97387687]
[1745247409407,1.22702,1629.6,1629.5,2.97387687]